[Event "29. Klatovy C 2023"]
[Site "Klatovy"]
[Date "2023.07.01"]
[Round "1.8"]
[White "Hanzlik, Jiri"]
[Black "Kucera, Jiri"]
[Result "0-1"]
[ECO "A10"]
[WhiteElo "1585"]
[BlackElo "1920"]
[PlyCount "63"]
[EventDate "2023.07.01"]
[EventType "swiss"]
[EventRounds "9"]
[EventCountry "CZE"]
[TimeControl "120+30"]

1. c4 {[%emt 0:00:16]} g6 {[%emt 0:01:56]} 2. Nc3 {[%emt 0:00:12]} Bg7 {[%emt 0:00:13]} 3. Qc2 {[%emt 0:00:12]} Nc6 {[%emt 0:00:35]} 4. e3 {[%emt 0:00:34]} e5 {[%emt 0:01:32]} 5. Be2 {[%emt 0:00:32]} d6 {[%emt 0:01:38]} 6. d3 {[%emt 0:00:12]} f5 {[%emt 0:02:59]} 7. Bd2 {[%emt 0:00:38]} Nf6 {[%emt 0:00:31]} 8. a3 {[%emt 0:00:53]} O-O {[%emt 0:03:08]} 9. b4 {[%emt 0:01:58]} Kh8 {[%emt 0:06:52]} 10. Bf3 {[%emt 0:02:35]} e4 {[%emt 0:13:30]} 11. Be2 {[%emt 0:00:14]} exd3 {[%emt 0:01:22]} 12. Bxd3 {[%emt 0:00:32]} Ne5 {[%emt 0:00:05]} 13. Be2 {[%emt 0:00:48]} Be6 {[%emt 0:01:29]} 14. Rc1 {[%emt 0:01:55]} Nxc4 {[%emt 0:05:06]} 15. Bxc4 {[%emt 0:00:19]} Bxc4 {[%emt 0:00:02]} 16. Nge2 {[%emt 0:02:21]} c6 {[%emt 0:10:25]} 17. O-O {[%emt 0:00:24]} Qe7 {[%emt 0:05:10]} 18. Rfe1 {[%emt 0:01:06]} Ng4 {[%emt 0:00:43]} 19. h3 {[%emt 0:00:17]} Ne5 {[%emt 0:01:01]} 20. Red1 {[%emt 0:01:50]} Nd3 {[%emt 0:12:40]} 21. Rb1 {[%emt 0:00:13]} Qh4 {[%emt 0:05:10]} 22. Be1 {[%emt 0:00:22]} Nxe1 {[%emt 0:01:52]} 23. Rxe1 {[%emt 0:00:04]} d5 {[%emt 0:05:13]} 24. Nf4 {[%emt 0:04:31]} Rae8 {[%emt 0:02:11]} 25. Nd3 {[%emt 0:02:43]} Bxd3 {[%emt 0:05:17]} 26. Qxd3 {[%emt 0:00:44]} f4 {[%emt 0:00:12]} 27. exf4 {[%emt 0:01:04]} Rxe1+ {[%emt 0:01:01]} 28. Rxe1 {[%emt 0:00:08]} Qxf4 {[%emt 0:00:04]} 29. f3 {[%emt 0:02:38]} Qd4+ {[%emt 0:00:22]} 30. Re3 {[%emt 0:00:32]} Re8 {[%emt 0:01:11]} 31. Nd1 {[%emt 0:00:16]} Rxe3 {[%emt 0:01:28]} 32. Nxe3 {[%emt 0:00:53]} 0-1

[Event "29. Klatovy C 2023"]
[Site "Klatovy"]
[Date "2023.07.06"]
[Round "6.1"]
[White "Novotny, Jaroslav2"]
[Black "Pribyl, Josef"]
[Result "0-1"]
[ECO "B15"]
[WhiteElo "1890"]
[BlackElo "2230"]
[PlyCount "70"]
[EventDate "2023.07.01"]
[EventType "swiss"]
[EventRounds "9"]
[EventCountry "CZE"]
[TimeControl "120+30"]

1. e4 {[%emt 0:00:05]} c6 {[%emt 0:00:16]} 2. d4 {[%emt 0:00:42]} d5 {[%emt 0:00:25]} 3. Nc3 {[%emt 0:02:40]} g6 {[%emt 0:00:42]} 4. Nf3 {[%emt 0:03:23]} Bg7 {[%emt 0:00:34]} 5. exd5 {[%emt 0:03:01]} cxd5 {[%emt 0:00:03]} 6. Bb5+ {[%emt 0:01:45]} Nc6 {[%emt 0:02:44]} 7. h3 {[%emt 0:05:52]} e6 {[%emt 0:02:56]} 8. O-O {[%emt 0:00:28]} Nge7 {[%emt 0:00:14]} 9. Ne5 {[%emt 0:03:37]} O-O {[%emt 0:01:22]} 10. Nxc6 {[%emt 0:00:38]} Nxc6 {[%emt 0:00:30]} 11. Bxc6 {[%emt 0:04:37]} bxc6 {[%emt 0:00:02]} 12. Ne2 {[%emt 0:03:14]} a5 {[%emt 0:02:09]} 13. c3 {[%emt 0:00:43]} a4 {[%emt 0:03:41]} 14. Bf4 {[%emt 0:01:47]} Qe7 {[%emt 0:02:04]} 15. Re1 {[%emt 0:01:50]} c5 {[%emt 0:01:44]} 16. dxc5 {[%emt 0:01:45]} Qxc5 {[%emt 0:00:01]} 17. Qd2 {[%emt 0:02:50]} Re8 {[%emt 0:09:36]} 18. Be3 {[%emt 0:05:53]} Qc4 {[%emt 0:03:06]} 19. f4 {[%emt 0:10:11]} Bb7 {[%emt 0:04:17]} 20. Nd4 {[%emt 0:06:47]} Rac8 {[%emt 0:01:12]} 21. a3 {[%emt 0:00:38]} f6 {[%emt 0:05:31]} 22. Rad1 {[%emt 0:11:08]} e5 {[%emt 0:04:09]} 23. Ne2 {[%emt 0:04:04]} Re6 {[%emt 0:05:25]} 24. Nc1 {[%emt 0:11:54]} Rce8 {[%emt 0:04:30]} 25. fxe5 {[%emt 0:04:14]} fxe5 {[%emt 0:00:02]} 26. Nd3 {[%emt 0:08:40]} d4 {[%emt 0:03:52]} 27. cxd4 {[%emt 0:00:51]} exd4 {[%emt 0:00:03]} 28. Bf2 {[%emt 0:00:41]} Qc6 {[%emt 0:02:12]} 29. Bh4 {[%emt 0:08:05]} Re3 {[%emt 0:12:10]} 30. Nb4 {[%emt 0:19:32]} Qb5 {[%emt 0:08:54]} 31. Bf2 {[%emt 0:01:24]} Re2 {[%emt 0:01:07]} 32. Qd3 {[%emt 0:00:25]} Qg5 {[%emt 0:05:09]} 33. Qg3 {[%emt 0:02:22]} Qxg3 {[%emt 0:00:30]} 34. Bxg3 {[%emt 0:00:06]} Rxg2+ {[%emt 0:00:49]} 35. Kf1 {[%emt 0:00:02]} Rf8+ {[%emt 0:00:16]} 0-1

[Event "29. Klatovy C 2023"]
[Site "Klatovy"]
[Date "2023.07.06"]
[Round "6.2"]
[White "Turner, Radek"]
[Black "Sedlak, Ludek"]
[Result "1/2-1/2"]
[ECO "A25"]
[WhiteElo "1991"]
[BlackElo "1885"]
[PlyCount "36"]
[EventDate "2023.07.01"]
[EventType "swiss"]
[EventRounds "9"]
[EventCountry "CZE"]
[TimeControl "120+30"]

1. c4 {[%emt 0:00:08]} e5 {[%emt 0:00:05]} 2. g3 {[%emt 0:00:05]} Nc6 {[%emt 0:00:10]} 3. Bg2 {[%emt 0:00:11]} f5 {[%emt 0:00:15]} 4. Nc3 {[%emt 0:00:37]} Nf6 {[%emt 0:00:07]} 5. Nf3 {[%emt 0:02:24]} Bc5 {[%emt 0:02:13]} 6. d3 {[%emt 0:01:34]} O-O {[%emt 0:02:31]} 7. O-O {[%emt 0:00:20]} d6 {[%emt 0:01:15]} 8. e3 {[%emt 0:02:24]} Bb6 {[%emt 0:01:01]} 9. Na4 {[%emt 0:11:06]} Qe8 {[%emt 0:07:03]} 10. Nxb6 {[%emt 0:04:19]} axb6 {[%emt 0:00:17]} 11. Ne1 {[%emt 0:00:16]} e4 {[%emt 0:13:27]} 12. d4 {[%emt 0:01:03]} Kh8 {[%emt 0:03:25]} 13. Nc2 {[%emt 0:04:26]} Bd7 {[%emt 0:04:02]} 14. Bd2 {[%emt 0:01:49]} Qe7 {[%emt 0:06:53]} 15. Nb4 {[%emt 0:09:41]} Nxb4 {[%emt 0:02:00]} 16. Bxb4 {[%emt 0:00:15]} c5 {[%emt 0:05:44]} 17. dxc5 {[%emt 0:00:29]} dxc5 {[%emt 0:00:13]} 18. Bc3 {[%emt 0:00:17]} b5 {[%emt 0:06:03]} 1/2-1/2

[Event "29. Klatovy C 2023"]
[Site "Klatovy"]
[Date "2023.07.06"]
[Round "6.3"]
[White "Chalus, Karel"]
[Black "Skopec, Lubos"]
[Result "1-0"]
[ECO "A14"]
[WhiteElo "1975"]
[BlackElo "1824"]
[PlyCount "55"]
[EventDate "2023.07.01"]
[EventType "swiss"]
[EventRounds "9"]
[EventCountry "CZE"]
[TimeControl "120+30"]

1. Nf3 {[%emt 0:03:59]} Nf6 {[%emt 0:00:30]} 2. c4 {[%emt 0:00:30]} e6 {[%emt 0:00:20]} 3. g3 {[%emt 0:01:31]} d5 {[%emt 0:01:17]} 4. Bg2 {[%emt 0:00:25]} Nbd7 {[%emt 0:01:44]} 5. O-O {[%emt 0:01:25]} Be7 {[%emt 0:01:21]} 6. d3 {[%emt 0:08:01]} O-O {[%emt 0:00:55]} 7. b3 {[%emt 0:01:11]} c6 {[%emt 0:01:26]} 8. Bb2 {[%emt 0:00:31]} b6 {[%emt 0:04:00]} 9. Nbd2 {[%emt 0:02:21]} Bb7 {[%emt 0:01:18]} 10. Rc1 {[%emt 0:04:00]} Rc8 {[%emt 0:00:48]} 11. Rc2 {[%emt 0:00:42]} Re8 {[%emt 0:05:26]} 12. Qa1 {[%emt 0:02:08]} Bf8 {[%emt 0:02:07]} 13. Rfc1 {[%emt 0:01:30]} c5 {[%emt 0:16:42]} 14. cxd5 {[%emt 0:07:36]} exd5 {[%emt 0:11:25]} 15. e3 {[%emt 0:03:07]} a5 {[%emt 0:08:31]} 16. d4 {[%emt 0:07:20]} Ne4 {[%emt 0:05:49]} 17. dxc5 {[%emt 0:07:35]} Nexc5 {[%emt 0:08:39]} 18. Ne1 {[%emt 0:08:14]} Qg5 {[%emt 0:06:36]} 19. Ndf3 {[%emt 0:04:24]} Qg6 {[%emt 0:01:18]} 20. Nh4 {[%emt 0:05:28]} Qe6 {[%emt 0:03:32]} 21. Bd4 {[%emt 0:06:18]} Ne5 {[%emt 0:02:33]} 22. Bf1 {[%emt 0:15:35]} Ncd7 {[%emt 0:09:14]} 23. Bb5 {[%emt 0:12:40]} Rxc2 {[%emt 0:01:11]} 24. Rxc2 {[%emt 0:02:44]} Rc8 {[%emt 0:00:42]} 25. Rxc8 {[%emt 0:03:18]} Bxc8 {[%emt 0:00:08]} 26. Qc3 {[%emt 0:00:46]} Nf6 {[%emt 0:14:32]} 27. Bxe5 {[%emt 0:01:03]} Bb4 {[%emt 0:00:16]} 28. Qc7 {[%emt 0:00:00]} 1-0

[Event "29. Klatovy C 2023"]
[Site "Klatovy"]
[Date "2023.07.06"]
[Round "6.4"]
[White "Macho, Miloslav"]
[Black "Petras, Milan"]
[Result "0-1"]
[ECO "A06"]
[WhiteElo "1705"]
[BlackElo "1866"]
[PlyCount "94"]
[EventDate "2023.07.01"]
[EventType "swiss"]
[EventRounds "9"]
[EventCountry "CZE"]
[TimeControl "120+30"]

1. Nf3 {[%emt 0:00:04]} d5 {[%emt 0:03:31]} 2. e3 {[%emt 0:02:21]} c5 {[%emt 0:02:39]} 3. b3 {[%emt 0:00:43]} Nf6 {[%emt 0:03:46]} 4. Bb5+ {[%emt 0:01:12]} Bd7 {[%emt 0:00:30]} 5. Be2 {[%emt 0:00:32]} Nc6 {[%emt 0:00:43]} 6. O-O {[%emt 0:00:46]} e6 {[%emt 0:02:47]} 7. Bb2 {[%emt 0:03:20]} Bd6 {[%emt 0:00:13]} 8. Re1 {[%emt 0:03:14]} a6 9. d3 {[%emt 0:00:00]} O-O {[%emt 0:00:00]} 10. Nbd2 {[%emt 0:15:29]} Bc7 11. Rc1 Qe7 12. d4 cxd4 13. exd4 Ba5 14. c3 Bc7 15. Bd3 g6 16. Bb1 Rfd8 17. Qe2 b5 18. Ne5 Be8 19. Ndf3 Nxe5 20. Nxe5 Nd7 21. Nc6 Qd6 22. Ne5 f6 23. Nf3 Bf7 24. g3 Re8 25. Qd2 a5 26. h4 a4 27. h5 a3 28. hxg6 hxg6 29. Ba1 Kg7 30. Kg2 Rh8 31. Rh1 Ba5 32. Qd3 b4 33. c4 Rag8 34. Rh4 Rxh4 35. Nxh4 Nf8 36. c5 Qc6 37. Qe2 Rh8 38. Bd3 g5 39. Bb5 Qc8 40. Nf3 e5 41. Nxg5 e4 42. Qe3 Qf5 43. Nxe4 {[%emt 0:00:00]} Qc8 {[%emt 3:29:34]} 44. Ng5 {[%emt 0:03:57]} Qf5 {[%emt 0:04:41]} 45. Ne4 {[%emt 0:00:01]} Qh3+ {[%emt 0:00:31]} 46. Kf3 {[%emt 0:03:08]} Bh5+ {[%emt 0:00:02]} 47. Kf4 Qg4# {[%emt 0:00:09]} 0-1

[Event "29. Klatovy C 2023"]
[Site "Klatovy"]
[Date "2023.07.06"]
[Round "6.5"]
[White "Ondrejat, Miroslav"]
[Black "Korsa, Jindrich"]
[Result "1-0"]
[ECO "A25"]
[WhiteElo "1834"]
[BlackElo "1997"]
[PlyCount "73"]
[EventDate "2023.07.01"]
[EventType "swiss"]
[EventRounds "9"]
[EventCountry "CZE"]
[TimeControl "120+30"]

1. c4 {[%emt 0:00:04]} e5 {[%emt 0:00:07]} 2. Nc3 {[%emt 0:00:05]} Nc6 {[%emt 0:00:05]} 3. g3 {[%emt 0:00:26]} g5 {[%emt 0:00:05]} 4. Bg2 {[%emt 0:04:23]} Bg7 {[%emt 0:00:13]} 5. e3 {[%emt 0:00:15]} d6 {[%emt 0:00:28]} 6. Nge2 {[%emt 0:00:12]} Nge7 {[%emt 0:00:12]} 7. d4 {[%emt 0:00:57]} Ng6 {[%emt 0:00:07]} 8. d5 {[%emt 0:01:09]} Nce7 {[%emt 0:00:19]} 9. e4 {[%emt 0:00:20]} h6 {[%emt 0:00:06]} 10. Qc2 {[%emt 0:04:26]} f5 {[%emt 0:02:47]} 11. exf5 {[%emt 0:00:22]} Bxf5 {[%emt 0:00:18]} 12. Be4 {[%emt 0:00:07]} Qd7 {[%emt 0:00:59]} 13. Be3 {[%emt 0:01:08]} Bxe4 {[%emt 0:04:52]} 14. Qxe4 {[%emt 0:03:14]} Qf5 {[%emt 0:00:19]} 15. O-O-O {[%emt 0:03:28]} Qxe4 {[%emt 0:02:46]} 16. Nxe4 {[%emt 0:00:03]} Nf5 {[%emt 0:00:18]} 17. Rd3 {[%emt 0:02:52]} b6 {[%emt 0:05:26]} 18. Kc2 {[%emt 0:04:23]} Ke7 {[%emt 0:04:31]} 19. a3 {[%emt 0:03:08]} g4 {[%emt 0:06:13]} 20. b4 {[%emt 0:10:47]} Nxe3+ {[%emt 0:00:17]} 21. Rxe3 {[%emt 0:08:10]} h5 {[%emt 0:00:33]} 22. Rd3 {[%emt 0:05:17]} Raf8 {[%emt 0:05:35]} 23. Rb1 {[%emt 0:02:35]} Bh6 {[%emt 0:05:28]} 24. c5 {[%emt 0:04:11]} Kd7 {[%emt 0:00:14]} 25. cxd6 {[%emt 0:05:04]} cxd6 {[%emt 0:00:07]} 26. Rbb3 {[%emt 0:00:06]} Rc8+ {[%emt 0:00:47]} 27. Rbc3 {[%emt 0:00:34]} Rxc3+ {[%emt 0:00:37]} 28. N2xc3 {[%emt 0:00:34]} Ne7 {[%emt 0:07:08]} 29. Nf6+ {[%emt 0:12:48]} Kd8 {[%emt 0:00:20]} 30. Nb5 {[%emt 0:00:42]} Nc8 {[%emt 0:02:10]} 31. Ne4 {[%emt 0:00:58]} Kd7 {[%emt 0:01:48]} 32. Rc3 {[%emt 0:03:29]} a6 {[%emt 0:00:15]} 33. Nc7 {[%emt 0:00:22]} Ne7 {[%emt 0:00:09]} 34. Nf6+ {[%emt 0:00:12]} Kc8 {[%emt 0:00:27]} 35. Nce8+ {[%emt 0:08:50]} Kd8 {[%emt 0:02:49]} 36. Nxd6 {[%emt 0:00:21]} Rf8 {[%emt 0:00:27]} 37. Nb7# {[%emt 0:00:38]} 1-0

[Event "29. Klatovy C 2023"]
[Site "Klatovy"]
[Date "2023.07.06"]
[Round "6.6"]
[White "Baumruk, Josef"]
[Black "Hlavac, Rudolf"]
[Result "1/2-1/2"]
[ECO "A34"]
[WhiteElo "1947"]
[BlackElo "1845"]
[PlyCount "108"]
[EventDate "2023.07.01"]
[EventType "swiss"]
[EventRounds "9"]
[EventCountry "CZE"]
[TimeControl "120+30"]

1. c4 {[%emt 0:00:11]} Nf6 {[%emt 0:01:12]} 2. Nc3 {[%emt 0:00:09]} d5 {[%emt 0:00:23]} 3. cxd5 {[%emt 0:00:31]} Nxd5 {[%emt 0:00:18]} 4. g3 {[%emt 0:00:33]} c5 {[%emt 0:00:28]} 5. Bg2 {[%emt 0:00:18]} Nc7 {[%emt 0:00:34]} 6. Nf3 {[%emt 0:02:48]} Nc6 {[%emt 0:00:09]} 7. O-O {[%emt 0:00:57]} e5 {[%emt 0:00:17]} 8. b3 {[%emt 0:02:33]} Be7 {[%emt 0:01:14]} 9. Bb2 {[%emt 0:01:03]} O-O {[%emt 0:00:52]} 10. Rc1 {[%emt 0:01:28]} f6 {[%emt 0:04:24]} 11. e3 {[%emt 0:04:03]} Bg4 {[%emt 0:07:21]} 12. h3 {[%emt 0:07:17]} Bh5 {[%emt 0:04:59]} 13. g4 {[%emt 0:01:46]} Bg6 {[%emt 0:06:02]} 14. Ne2 {[%emt 0:02:58]} Bd3 {[%emt 0:21:27]} 15. Ne1 {[%emt 0:02:22]} Bxe2 {[%emt 0:04:38]} 16. Qxe2 {[%emt 0:00:50]} Qd7 {[%emt 0:03:05]} 17. Ba3 {[%emt 0:03:15]} Ne6 {[%emt 0:03:32]} 18. Qc4 {[%emt 0:05:51]} Kh8 {[%emt 0:00:56]} 19. Rc3 {[%emt 0:10:49]} Rad8 {[%emt 0:02:56]} 20. Rd3 {[%emt 0:08:27]} Qc8 {[%emt 0:02:36]} 21. Be4 {[%emt 0:16:30]} a6 {[%emt 0:08:33]} 22. Bf5 {[%emt 0:01:10]} Rxd3 {[%emt 0:04:44]} 23. Nxd3 {[%emt 0:00:43]} Ncd8 {[%emt 0:00:13]} 24. Bxc5 {[%emt 0:03:58]} Bxc5 {[%emt 0:02:01]} 25. Rc1 {[%emt 0:08:29]} g6 {[%emt 0:03:01]} 26. Bxe6 {[%emt 0:01:18]} Nxe6 {[%emt 0:01:19]} 27. Nxc5 {[%emt 0:03:39]} Ng5 {[%emt 0:00:25]} 28. Ne4 {[%emt 0:09:00]} Nxh3+ {[%emt 0:01:09]} 29. Kg2 {[%emt 0:03:29]} Qxg4+ {[%emt 0:02:27]} 30. Ng3 {[%emt 0:00:11]} Qxc4 {[%emt 0:01:08]} 31. Rxc4 {[%emt 0:00:10]} Ng5 {[%emt 0:00:21]} 32. d4 {[%emt 0:05:34]} exd4 {[%emt 0:02:04]} 33. Rxd4 {[%emt 0:00:13]} Rf7 {[%emt 0:01:08]} 34. Ne4 {[%emt 0:01:48]} Nxe4 {[%emt 0:00:34]} 35. Rxe4 {[%emt 0:00:05]} f5 {[%emt 0:01:13]} 36. Re6 {[%emt 0:00:25]} Kg7 {[%emt 0:00:31]} 37. b4 {[%emt 0:01:02]} h5 {[%emt 0:02:41]} 38. a4 {[%emt 0:00:19]} Kh6 {[%emt 0:00:19]} 39. Kg3 {[%emt 0:01:38]} Rc7 {[%emt 0:01:29]} 40. Rb6 {[%emt 0:00:28]} Kg5 {[%emt 0:00:58]} 41. f4+ {[%emt 0:04:53]} Kh6 {[%emt 0:00:14]} 42. a5 {[%emt 0:01:11]} Re7 {[%emt 0:00:18]} 43. Kf3 {[%emt 0:00:18]} h4 {[%emt 0:00:51]} 44. b5 {[%emt 0:00:15]} axb5 {[%emt 0:00:20]} 45. Rxb5 {[%emt 0:00:08]} Rc7 {[%emt 0:03:09]} 46. Rb3 {[%emt 0:01:10]} g5 {[%emt 0:01:46]} 47. Rb6+ {[%emt 0:02:31]} Kh5 {[%emt 0:00:16]} 48. fxg5 {[%emt 0:00:06]} Kxg5 {[%emt 0:00:18]} 49. a6 {[%emt 0:00:09]} bxa6 {[%emt 0:00:21]} 50. Rxa6 {[%emt 0:00:11]} Re7 {[%emt 0:02:59]} 51. Ra8 {[%emt 0:01:12]} Re6 {[%emt 0:02:38]} 52. Rg8+ {[%emt 0:01:29]} Rg6 {[%emt 0:04:03]} 53. Rxg6+ {[%emt 0:00:58]} Kxg6 {[%emt 0:00:14]} 54. e4 {[%emt 0:00:03]} fxe4+ {[%emt 0:01:23]} 1/2-1/2

[Event "29. Klatovy C 2023"]
[Site "Klatovy"]
[Date "2023.07.06"]
[Round "6.7"]
[White "Richter, Martin1"]
[Black "Zednik, Zdenek"]
[Result "1/2-1/2"]
[ECO "B20"]
[WhiteElo "1946"]
[BlackElo "1836"]
[PlyCount "64"]
[EventDate "2023.07.01"]
[EventType "swiss"]
[EventRounds "9"]
[EventCountry "CZE"]
[TimeControl "120+30"]

1. e4 {[%emt 0:00:06]} c5 {[%emt 0:00:55]} 2. b3 {[%emt 0:00:10]} d6 {[%emt 0:00:58]} 3. Bb2 {[%emt 0:00:08]} Nf6 {[%emt 0:00:09]} 4. Bb5+ {[%emt 0:03:50]} Bd7 {[%emt 0:03:23]} 5. Bxd7+ {[%emt 0:04:05]} Nbxd7 {[%emt 0:00:12]} 6. Qe2 {[%emt 0:00:19]} g6 {[%emt 0:01:57]} 7. f4 {[%emt 0:00:20]} Bg7 {[%emt 0:00:34]} 8. Nf3 {[%emt 0:02:59]} O-O {[%emt 0:03:11]} 9. d3 {[%emt 0:01:15]} e6 {[%emt 0:02:52]} 10. Nbd2 {[%emt 0:00:51]} Qa5 {[%emt 0:05:09]} 11. O-O {[%emt 0:01:31]} Qc7 {[%emt 0:06:53]} 12. a4 {[%emt 0:07:49]} b6 {[%emt 0:02:23]} 13. Rae1 {[%emt 0:24:42]} Rfe8 {[%emt 0:17:21]} 14. e5 {[%emt 0:17:46]} dxe5 {[%emt 0:00:02]} 15. Nxe5 {[%emt 0:00:43]} Nd5 {[%emt 0:03:31]} 16. Qf3 {[%emt 0:06:31]} Nb4 {[%emt 0:13:04]} 17. c3 {[%emt 0:01:20]} Nxe5 {[%emt 0:19:19]} 18. fxe5 {[%emt 0:00:28]} Nc6 {[%emt 0:00:27]} 19. d4 {[%emt 0:02:34]} Rad8 {[%emt 0:06:13]} 20. Ne4 {[%emt 0:06:00]} cxd4 {[%emt 0:09:44]} 21. Nf6+ {[%emt 0:02:33]} Bxf6 {[%emt 0:02:49]} 22. exf6 {[%emt 0:00:23]} e5 {[%emt 0:03:54]} 23. Re4 {[%emt 0:04:15]} Qd6 {[%emt 0:03:29]} 24. Qh3 {[%emt 0:11:24]} Re6 {[%emt 0:00:27]} 25. Ba3 {[%emt 0:07:02]} Qxa3 {[%emt 0:02:34]} 26. Rh4 {[%emt 0:01:16]} h5 {[%emt 0:01:01]} 27. Rxh5 {[%emt 0:00:08]} gxh5 {[%emt 0:01:10]} 28. Qxh5 {[%emt 0:00:31]} Rxf6 {[%emt 0:00:30]} 29. Rxf6 {[%emt 0:00:13]} Qc1+ {[%emt 0:00:09]} 30. Rf1 {[%emt 0:00:07]} Qe3+ {[%emt 0:00:15]} 31. Kh1 {[%emt 0:00:14]} Rf8 {[%emt 0:04:37]} 32. Qg4+ {[%emt 0:01:42]} Kh8 {[%emt 0:03:53]} 1/2-1/2

[Event "29. Klatovy C 2023"]
[Site "Klatovy"]
[Date "2023.07.06"]
[Round "6.8"]
[White "Kucera, Jiri"]
[Black "Burgermeister, Michal"]
[Result "1-0"]
[ECO "A08"]
[WhiteElo "1920"]
[BlackElo "1748"]
[PlyCount "43"]
[EventDate "2023.07.01"]
[EventType "swiss"]
[EventRounds "9"]
[EventCountry "CZE"]
[TimeControl "120+30"]

1. Nf3 {[%emt 0:00:44]} c5 {[%emt 0:00:24]} 2. g3 {[%emt 0:01:26]} Nc6 {[%emt 0:00:33]} 3. Bg2 {[%emt 0:00:57]} d5 {[%emt 0:01:07]} 4. O-O {[%emt 0:01:54]} Nf6 {[%emt 0:00:27]} 5. d3 {[%emt 0:00:37]} g6 {[%emt 0:01:22]} 6. Nbd2 {[%emt 0:01:13]} Bg7 {[%emt 0:00:54]} 7. e4 {[%emt 0:00:58]} Bg4 {[%emt 0:05:20]} 8. h3 {[%emt 0:03:35]} Bxf3 {[%emt 0:01:19]} 9. Qxf3 {[%emt 0:02:36]} Nd4 {[%emt 0:06:26]} 10. Qd1 {[%emt 0:00:06]} dxe4 {[%emt 0:03:33]} 11. dxe4 {[%emt 0:02:31]} e5 {[%emt 0:08:10]} 12. Nc4 {[%emt 0:05:29]} Qc7 {[%emt 0:07:56]} 13. c3 {[%emt 0:02:51]} Nc6 {[%emt 0:05:26]} 14. Qd6 {[%emt 0:03:03]} Rc8 {[%emt 0:08:01]} 15. Be3 {[%emt 0:27:13]} b6 {[%emt 0:09:17]} 16. Rad1 {[%emt 0:11:10]} Nh5 {[%emt 0:07:26]} 17. g4 {[%emt 0:17:14]} Nf4 {[%emt 0:10:49]} 18. Bxf4 {[%emt 0:00:06]} exf4 {[%emt 0:00:05]} 19. e5 {[%emt 0:00:31]} Nxe5 {[%emt 0:07:53]} 20. Rfe1 {[%emt 0:05:23]} f6 {[%emt 0:04:55]} 21. Qe6+ {[%emt 0:00:17]} Kf8 {[%emt 0:00:26]} 22. Nxe5 {[%emt 0:01:43]} 1-0

[Event "29. Klatovy C 2023"]
[Site "Klatovy"]
[Date "2023.07.07"]
[Round "7.1"]
[White "Pribyl, Josef"]
[Black "Chalus, Karel"]
[Result "0-1"]
[ECO "A12"]
[WhiteElo "2230"]
[BlackElo "1975"]
[PlyCount "132"]
[EventDate "2023.07.01"]
[EventType "swiss"]
[EventRounds "9"]
[EventCountry "CZE"]
[TimeControl "120+30"]

1. c4 {[%emt 0:00:58]} Nf6 {[%emt 0:00:05]} 2. Nf3 {[%emt 0:00:18]} c6 {[%emt 0:00:17]} 3. b3 {[%emt 0:00:33]} d5 {[%emt 0:00:14]} 4. g3 {[%emt 0:00:19]} Bf5 {[%emt 0:00:10]} 5. Bb2 {[%emt 0:00:12]} e6 {[%emt 0:00:18]} 6. Bg2 {[%emt 0:00:11]} Be7 {[%emt 0:00:06]} 7. d3 {[%emt 0:01:07]} Nbd7 {[%emt 0:01:00]} 8. Nh4 {[%emt 0:00:48]} Bg4 {[%emt 0:15:59]} 9. h3 {[%emt 0:00:13]} Bh5 {[%emt 0:00:08]} 10. g4 {[%emt 0:00:21]} Bg6 {[%emt 0:08:27]} 11. Nxg6 {[%emt 0:00:18]} hxg6 {[%emt 0:00:18]} 12. Nd2 {[%emt 0:00:11]} Qb6 {[%emt 0:07:22]} 13. d4 {[%emt 0:14:31]} dxc4 {[%emt 0:04:56]} 14. Nxc4 {[%emt 0:00:20]} Bb4+ {[%emt 0:00:12]} 15. Kf1 {[%emt 0:00:03]} Qc7 {[%emt 0:06:41]} 16. e3 {[%emt 0:04:25]} Nd5 {[%emt 0:11:00]} 17. Rc1 {[%emt 0:01:05]} Be7 {[%emt 0:08:57]} 18. Qf3 {[%emt 0:02:07]} b5 {[%emt 0:06:04]} 19. Ne5 {[%emt 0:00:30]} Nxe5 {[%emt 0:00:41]} 20. dxe5 {[%emt 0:00:01]} Qa5 {[%emt 0:06:02]} 21. Qe2 {[%emt 0:26:08]} b4 {[%emt 0:21:29]} 22. Rxc6 {[%emt 0:01:59]} O-O {[%emt 0:01:33]} 23. Qa6 {[%emt 0:01:42]} Qd8 {[%emt 0:05:42]} 24. Ke2 {[%emt 0:05:30]} f6 {[%emt 0:10:10]} 25. Rd1 {[%emt 0:05:21]} fxe5 {[%emt 0:01:15]} 26. Rcc1 {[%emt 0:11:44]} Bh4 {[%emt 0:01:05]} 27. Qxe6+ {[%emt 0:00:39]} Kh7 {[%emt 0:00:28]} 28. f3 {[%emt 0:05:39]} Qa5 {[%emt 0:02:35]} 29. Qxd5 {[%emt 0:04:42]} Qxa2 {[%emt 0:00:18]} 30. Rd2 {[%emt 0:07:19]} Rad8 {[%emt 0:01:12]} 31. Bxe5 {[%emt 0:00:54]} Rxd5 {[%emt 0:01:25]} 32. Rxa2 {[%emt 0:00:01]} Rxe5 {[%emt 0:00:09]} 33. Rxa7 {[%emt 0:01:50]} Rxe3+ {[%emt 0:00:20]} 34. Kxe3 {[%emt 0:00:21]} Bg5+ {[%emt 0:00:06]} 35. Kd3 {[%emt 0:03:26]} Bxc1 {[%emt 0:00:33]} 36. Rb7 {[%emt 0:00:41]} Rf4 {[%emt 0:00:31]} 37. Rc7 {[%emt 0:01:55]} Bb2 {[%emt 0:01:39]} 38. Ke3 {[%emt 0:00:07]} Rf6 {[%emt 0:00:36]} 39. Bf1 {[%emt 0:00:29]} g5 {[%emt 0:01:41]} 40. Bd3+ {[%emt 0:00:15]} Kg8 {[%emt 0:00:11]} 41. Be4 {[%emt 0:00:56]} Rh6 {[%emt 0:00:40]} 42. Rb7 {[%emt 0:00:57]} Bc3 {[%emt 0:00:40]} 43. Rb5 {[%emt 0:00:07]} Rxh3 {[%emt 0:00:45]} 44. Rxg5 {[%emt 0:00:03]} Rh2 {[%emt 0:00:33]} 45. Rb5 {[%emt 0:00:53]} Rd2 {[%emt 0:00:30]} 46. g5 {[%emt 0:00:32]} Rd8 {[%emt 0:01:13]} 47. Bd5+ {[%emt 0:02:32]} Kh7 {[%emt 0:01:32]} 48. f4 {[%emt 0:00:29]} Kg6 {[%emt 0:00:28]} 49. Kf3 {[%emt 0:00:36]} Kh5 {[%emt 0:01:51]} 50. Ra5 {[%emt 0:01:34]} Bd2 {[%emt 0:00:55]} 51. Bf7+ {[%emt 0:01:27]} Kh4 {[%emt 0:00:14]} 52. Ra1 {[%emt 0:02:29]} Rd3+ {[%emt 0:01:19]} 53. Ke4 {[%emt 0:00:30]} Re3+ {[%emt 0:00:15]} 54. Kf5 {[%emt 0:02:23]} Rf3 {[%emt 0:01:33]} 55. Rh1+ {[%emt 0:00:54]} Kg3 {[%emt 0:00:06]} 56. Rg1+ {[%emt 0:00:12]} Kh3 {[%emt 0:00:11]} 57. Kg6 {[%emt 0:01:13]} Bc3 {[%emt 0:01:33]} 58. Be6+ {[%emt 0:00:37]} Kh2 {[%emt 0:00:34]} 59. Rg4 {[%emt 0:00:02]} Kh3 {[%emt 0:01:26]} 60. f5 {[%emt 0:00:44]} Kxg4 {[%emt 0:00:21]} 61. f6+ {[%emt 0:00:36]} Kh4 {[%emt 0:00:19]} 62. fxg7 {[%emt 0:00:20]} Bxg7 {[%emt 0:00:14]} 63. Kxg7 {[%emt 0:00:11]} Kxg5 {[%emt 0:00:07]} 64. Bd5 {[%emt 0:00:24]} Rf4 {[%emt 0:00:17]} 65. Bg8 {[%emt 0:00:23]} Kg4 {[%emt 0:00:09]} 66. Kg6 {[%emt 0:00:12]} Kf3 {[%emt 0:00:13]} 0-1